[Event "Titled Tuesday Blitz May 23 Late 2023"]
[White "Roman, Rodrigo"]
[Black "Lonoff, Marc"]
[WhiteFideId "3701220"]
[BlackFideId "2001349"]
[WhiteElo "1995"]
[BlackElo "2106"]
[Result "1-0"]
[Round "08"]
[TimeControl "180+2"]
[Date "2023.05.23"]
[WhiteClock "0:00:12"]
[BlackClock "0:00:00"]

1. a3 {[%clk 0:03:00]}  e6 {[%clk 0:02:56]} 2. Ra2 {[%clk 0:02:47]}  Nf6 {[%clk 0:02:55]} 3. d4 {[%clk 0:02:47]}  a5 {[%clk 0:02:55]} 4. Nf3 {[%clk 0:02:47]}  b6 {[%clk 0:02:55]} 5. b3 {[%clk 0:02:46]}  Bb7 {[%clk 0:02:55]} 6. c4 {[%clk 0:02:46]}  Be7 {[%clk 0:02:54]} 7. Bg5 {[%clk 0:02:46]}  h6 {[%clk 0:02:54]} 8. Bxf6 {[%clk 0:02:44]}  Bxf6 {[%clk 0:02:54]} 9. Nc3 {[%clk 0:02:44]}  O-O {[%clk 0:02:52]} 10. e4 {[%clk 0:02:41]}  c5 {[%clk 0:02:47]} 11. e5 {[%clk 0:02:40]}  cxd4 {[%clk 0:02:37]} 12. Qxd4 {[%clk 0:02:40]}  Nc6 {[%clk 0:02:29]} 13. Qe3 {[%clk 0:02:37]}  Be7 {[%clk 0:02:28]} 14. Nb5 {[%clk 0:02:37]}  Bc5 {[%clk 0:02:19]} 15. Qf4 {[%clk 0:02:36]}  f6 {[%clk 0:02:17]} 16. Bd3 {[%clk 0:02:11]}  fxe5 {[%clk 0:01:42]} 17. Qe4 {[%clk 0:02:11]}  Rf5 {[%clk 0:01:39]} 18. g4 {[%clk 0:02:10]}  Nd4 {[%clk 0:01:22]} 19. Qxb7 {[%clk 0:02:08]}  Nxf3+ {[%clk 0:01:20]} 20. Kf1 {[%clk 0:02:07]}  Rf4 {[%clk 0:01:12]} 21. h3 {[%clk 0:01:38]}  Rb8 {[%clk 0:01:04]} 22. Qa7 {[%clk 0:01:37]}  Qf8 {[%clk 0:01:03]} 23. Qxd7 {[%clk 0:01:35]}  Rd8 {[%clk 0:00:46]} 24. Qxe6+ {[%clk 0:01:31]}  Kh8 {[%clk 0:00:45]} 25. Bf5 {[%clk 0:01:19]}  Rd1+ {[%clk 0:00:41]} 26. Kg2 {[%clk 0:01:13]}  Rxh1 {[%clk 0:00:40]} 27. Kxh1 {[%clk 0:01:13]}  Ng5 {[%clk 0:00:37]} 28. Qc8 {[%clk 0:01:10]}  Rxf5 {[%clk 0:00:36]} 29. Qxf5 {[%clk 0:01:09]}  Qd8 {[%clk 0:00:36]} 30. h4 {[%clk 0:00:54]}  Nh7 {[%clk 0:00:29]} 31. Kg2 {[%clk 0:00:50]}  Qxh4 {[%clk 0:00:27]} 32. Rd2 {[%clk 0:00:46]}  Nf8 {[%clk 0:00:16]} 33. Nc7 {[%clk 0:00:36]}  Qe7 {[%clk 0:00:12]} 34. Nd5 {[%clk 0:00:34]}  Qb7 {[%clk 0:00:11]} 35. Qf3 {[%clk 0:00:31]}  Ng6 {[%clk 0:00:08]} 36. Qe4 {[%clk 0:00:21]}  Nf4+ {[%clk 0:00:05]} 37. Kf3 {[%clk 0:00:21]}  Qf7 {[%clk 0:00:04]} 38. Nxf4 {[%clk 0:00:21]}  exf4 {[%clk 0:00:03]} 39. Rd8+ {[%clk 0:00:21]}  Bf8 {[%clk 0:00:02]} 40. Qxf4 {[%clk 0:00:17]}  Qxf4+ {[%clk 0:00:01]} 41. Kxf4 {[%clk 0:00:17]}  Kg8 {[%clk 0:00:02]} 42. a4 {[%clk 0:00:14]}  Kf7 {[%clk 0:00:02]} 43. Kf5 {[%clk 0:00:12]}  g6+ {[%clk 0:00:01]} 44. Ke4 {[%clk 0:00:12]}  Be7 {[%clk 0:00:00]} 45. Rb8 {[%clk 0:00:12]} 1-0


[Site "https://www.chess.com"]

[Event "Titled Tuesday Blitz May 23 Late 2023"]
[White "Burke, Paul"]
[Black "Sariego Figueredo, Wilfredo"]
[WhiteFideId "2605767"]
[BlackFideId "3500080"]
[WhiteElo "1884"]
[BlackElo "2309"]
[Result "0-1"]
[Round "08"]
[TimeControl "180+2"]
[Date "2023.05.23"]
[WhiteClock "0:00:00"]
[BlackClock "0:00:17"]

1. e4 {[%clk 0:02:50]}  c5 {[%clk 0:03:00]} 2. d4 {[%clk 0:02:50]}  a6 {[%clk 0:03:01]} 3. c3 {[%clk 0:02:50]}  cxd4 {[%clk 0:02:59]} 4. Nf3 {[%clk 0:02:49]}  Nf6 {[%clk 0:02:58]} 5. e5 {[%clk 0:02:49]}  Nd5 {[%clk 0:02:57]} 6. Bd3 {[%clk 0:02:49]}  dxc3 {[%clk 0:02:53]} 7. bxc3 {[%clk 0:02:48]}  e6 {[%clk 0:02:51]} 8. Qe2 {[%clk 0:02:45]}  Be7 {[%clk 0:02:45]} 9. O-O {[%clk 0:02:41]}  Nc6 {[%clk 0:02:43]} 10. h3 {[%clk 0:02:18]}  O-O {[%clk 0:02:34]} 11. Qe4 {[%clk 0:02:17]}  g6 {[%clk 0:02:27]} 12. Bh6 {[%clk 0:02:15]}  Re8 {[%clk 0:02:27]} 13. Rd1 {[%clk 0:02:02]}  Qc7 {[%clk 0:02:12]} 14. h4 {[%clk 0:01:40]}  b5 {[%clk 0:01:49]} 15. h5 {[%clk 0:01:38]}  Bb7 {[%clk 0:01:38]} 16. hxg6 {[%clk 0:01:36]}  hxg6 {[%clk 0:01:36]} 17. Re1 {[%clk 0:01:25]}  Na5 {[%clk 0:01:25]} 18. Qg4 {[%clk 0:01:18]}  Kh7 {[%clk 0:01:08]} 19. Ng5+ {[%clk 0:00:30]}  Bxg5 {[%clk 0:00:48]} 20. Bxg5 {[%clk 0:00:29]}  Rh8 {[%clk 0:00:43]} 21. Re3 {[%clk 0:00:12]}  Kg7 {[%clk 0:00:20]} 22. Bf6+ {[%clk 0:00:09]}  Nxf6 {[%clk 0:00:20]} 23. exf6+ {[%clk 0:00:09]}  Kxf6 {[%clk 0:00:20]} 24. Qd4+ {[%clk 0:00:00]}  Ke7 {[%clk 0:00:17]} 0-1


[Site "https://www.chess.com"]

[Event "Titled Tuesday Blitz May 23 Late 2023"]
[White "Vargas, Mauricio"]
[Black "Kev4444444444"]
[WhiteFideId "4404572"]
[WhiteElo "1986"]
[BlackElo "2149"]
[Result "0-1"]
[Round "08"]
[TimeControl "180+2"]
[Date "2023.05.23"]
[WhiteClock "0:00:00"]
[BlackClock "0:02:01"]

1. e4 {[%clk 0:03:00]}  g6 {[%clk 0:02:54]} 2. f4 {[%clk 0:02:59]}  Bg7 {[%clk 0:02:54]} 3. Nf3 {[%clk 0:02:59]}  c5 {[%clk 0:02:54]} 4. Bc4 {[%clk 0:02:57]}  e6 {[%clk 0:02:53]} 5. O-O {[%clk 0:02:56]}  Ne7 {[%clk 0:02:53]} 6. d3 {[%clk 0:02:53]}  Nbc6 {[%clk 0:02:52]} 7. a3 {[%clk 0:02:51]}  d6 {[%clk 0:02:52]} 8. c3 {[%clk 0:02:42]}  O-O {[%clk 0:02:51]} 9. Nbd2 {[%clk 0:02:39]}  a6 {[%clk 0:02:50]} 10. Ba2 {[%clk 0:02:35]}  b5 {[%clk 0:02:50]} 11. Qe1 {[%clk 0:02:34]}  b4 {[%clk 0:02:48]} 12. axb4 {[%clk 0:02:29]}  cxb4 {[%clk 0:02:48]} 13. Nb1 {[%clk 0:02:02]}  b3 {[%clk 0:02:44]} 14. Bxb3 {[%clk 0:01:51]}  Qb6+ {[%clk 0:02:44]} 15. Kh1 {[%clk 0:01:44]}  Qxb3 {[%clk 0:02:44]} 16. Qh4 {[%clk 0:01:45]}  Qc2 {[%clk 0:02:27]} 17. f5 {[%clk 0:01:43]}  exf5 {[%clk 0:02:25]} 18. Bh6 {[%clk 0:01:41]}  Qxd3 {[%clk 0:02:23]} 19. Na3 {[%clk 0:01:34]}  Qxe4 {[%clk 0:02:21]} 20. Qh3 {[%clk 0:01:27]}  Qg4 {[%clk 0:02:20]} 21. Qxg4 {[%clk 0:01:00]}  fxg4 {[%clk 0:02:20]} 22. Bxg7 {[%clk 0:01:00]}  Kxg7 {[%clk 0:02:19]} 23. Nd4 {[%clk 0:00:54]}  Nxd4 {[%clk 0:02:18]} 24. cxd4 {[%clk 0:00:54]}  Be6 {[%clk 0:02:15]} 25. Nc2 {[%clk 0:00:51]}  Rfc8 {[%clk 0:02:13]} 26. Ne3 {[%clk 0:00:51]}  Rab8 {[%clk 0:02:12]} 27. Rxa6 {[%clk 0:00:46]}  Rxb2 {[%clk 0:02:11]} 28. Ra7 {[%clk 0:00:46]}  Nf5 {[%clk 0:02:09]} 29. d5 {[%clk 0:00:33]}  Nxe3 {[%clk 0:02:07]} 30. dxe6 {[%clk 0:00:25]}  Nxf1 {[%clk 0:02:07]} 31. Rxf7+ {[%clk 0:00:24]}  Kg8 {[%clk 0:02:07]} 32. Rxf1 {[%clk 0:00:22]}  Re8 {[%clk 0:02:05]} 33. Re1 {[%clk 0:00:19]}  Rxe6 {[%clk 0:02:04]} 34. Rc1 {[%clk 0:00:17]}  Rc2 {[%clk 0:02:03]} 35. Rg1 {[%clk 0:00:13]}  Ree2 {[%clk 0:02:02]} 36. h4 {[%clk 0:00:11]}  g3 {[%clk 0:02:02]} 37. h5 {[%clk 0:00:06]}  gxh5 {[%clk 0:02:00]} 38. Ra1 {[%clk 0:00:05]}  h4 {[%clk 0:02:00]} 39. Ra8+ {[%clk 0:00:04]}  Kg7 {[%clk 0:02:00]} 40. Ra7+ {[%clk 0:00:04]}  Kf6 {[%clk 0:02:01]} 41. Ra1 {[%clk 0:00:00]}  Rxg2 {[%clk 0:02:01]} 0-1


[Site "https://www.chess.com"]

[Event "Titled Tuesday Blitz May 23 Late 2023"]
[White "Rasulov, Vugar"]
[Black "Nakamura, Hikaru"]
[WhiteFideId "13402390"]
[BlackFideId "2016192"]
[WhiteElo "2509"]
[BlackElo "2885"]
[Result "1/2-1/2"]
[Round "09"]
[TimeControl "180+2"]
[Date "2023.05.23"]
[WhiteClock "0:00:10"]
[BlackClock "0:00:10"]

1. e4 {[%clk 0:03:00]}  c6 {[%clk 0:02:57]} 2. d4 {[%clk 0:02:59]}  d5 {[%clk 0:02:57]} 3. e5 {[%clk 0:02:59]}  Bf5 {[%clk 0:02:57]} 4. Be3 {[%clk 0:02:59]}  e6 {[%clk 0:02:58]} 5. Nd2 {[%clk 0:02:59]}  c5 {[%clk 0:02:55]} 6. dxc5 {[%clk 0:02:51]}  Nd7 {[%clk 0:02:44]} 7. Bb5 {[%clk 0:02:47]}  Ne7 {[%clk 0:02:41]} 8. Ngf3 {[%clk 0:02:36]}  Nc6 {[%clk 0:02:39]} 9. Bxc6 {[%clk 0:02:31]}  bxc6 {[%clk 0:02:40]} 10. b4 {[%clk 0:02:21]}  Qb8 {[%clk 0:02:29]} 11. Nd4 {[%clk 0:02:10]}  Qxb4 {[%clk 0:02:18]} 12. Rb1 {[%clk 0:02:04]}  Qa4 {[%clk 0:02:18]} 13. Nxf5 {[%clk 0:02:01]}  exf5 {[%clk 0:02:19]} 14. Nb3 {[%clk 0:01:49]}  Qc4 {[%clk 0:01:48]} 15. Qd4 {[%clk 0:01:39]}  Qxd4 {[%clk 0:01:39]} 16. Bxd4 {[%clk 0:01:40]}  a5 {[%clk 0:01:40]} 17. a4 {[%clk 0:01:37]}  Be7 {[%clk 0:01:40]} 18. Kd2 {[%clk 0:01:32]}  Nf8 {[%clk 0:01:36]} 19. Bc3 {[%clk 0:01:24]}  Ne6 {[%clk 0:01:35]} 20. Nxa5 {[%clk 0:01:16]}  Nxc5 {[%clk 0:01:23]} 21. Ke2 {[%clk 0:01:05]}  Nxa4 {[%clk 0:01:18]} 22. Bd2 {[%clk 0:01:03]}  Rc8 {[%clk 0:01:04]} 23. Rb7 {[%clk 0:00:37]}  Bd8 {[%clk 0:01:04]} 24. e6 {[%clk 0:00:28]}  O-O {[%clk 0:00:53]} 25. exf7+ {[%clk 0:00:19]}  Rxf7 {[%clk 0:00:54]} 26. Rhb1 {[%clk 0:00:19]}  Rxb7 {[%clk 0:00:37]} 27. Rxb7 {[%clk 0:00:18]}  Nc5 {[%clk 0:00:38]} 28. Rb1 {[%clk 0:00:14]}  Ne4 {[%clk 0:00:36]} 29. Be1 {[%clk 0:00:13]}  c5 {[%clk 0:00:30]} 30. Rb7 {[%clk 0:00:12]}  Bf6 {[%clk 0:00:18]} 31. Rd7 {[%clk 0:00:07]}  Re8 {[%clk 0:00:13]} 32. Kf1 {[%clk 0:00:07]}  d4 {[%clk 0:00:11]} 33. Nc4 {[%clk 0:00:06]}  g6 {[%clk 0:00:09]} 34. f3 {[%clk 0:00:07]}  Ng5 {[%clk 0:00:09]} 35. Bh4 {[%clk 0:00:05]}  h6 {[%clk 0:00:08]} 36. Bxg5 {[%clk 0:00:05]}  hxg5 {[%clk 0:00:09]} 37. Rc7 {[%clk 0:00:06]}  Be7 {[%clk 0:00:09]} 38. Rc6 {[%clk 0:00:05]}  Kg7 {[%clk 0:00:10]} 39. Ne5 {[%clk 0:00:05]}  Bf6 {[%clk 0:00:07]} 40. Nd3 {[%clk 0:00:05]}  Ra8 {[%clk 0:00:05]} 41. Rc7+ {[%clk 0:00:06]}  Kh6 {[%clk 0:00:05]} 42. Rc6 {[%clk 0:00:06]}  Kg7 {[%clk 0:00:06]} 43. Rc7+ {[%clk 0:00:07]}  Kh6 {[%clk 0:00:06]} 44. Rc6 {[%clk 0:00:07]}  Be7 {[%clk 0:00:06]} 45. Nxc5 {[%clk 0:00:05]}  Ra1+ {[%clk 0:00:06]} 46. Ke2 {[%clk 0:00:05]}  Rh1 {[%clk 0:00:04]} 47. h3 {[%clk 0:00:04]}  Rg1 {[%clk 0:00:05]} 48. Kf2 {[%clk 0:00:05]}  Rd1 {[%clk 0:00:05]} 49. Nd3 {[%clk 0:00:04]}  Rd2+ {[%clk 0:00:06]} 50. Kf1 {[%clk 0:00:05]}  Rd1+ {[%clk 0:00:06]} 51. Ke2 {[%clk 0:00:05]}  Rg1 {[%clk 0:00:07]} 52. Kf2 {[%clk 0:00:05]}  Rd1 {[%clk 0:00:07]} 53. Ne5 {[%clk 0:00:05]}  Kh7 {[%clk 0:00:06]} 54. Rc7 {[%clk 0:00:05]}  Kh6 {[%clk 0:00:06]} 55. Rxe7 {[%clk 0:00:04]}  Rd2+ {[%clk 0:00:06]} 56. Kg3 {[%clk 0:00:05]}  Rxc2 {[%clk 0:00:06]} 57. Rd7 {[%clk 0:00:06]}  Rd2 {[%clk 0:00:06]} 58. Nf7+ {[%clk 0:00:06]}  Kh5 {[%clk 0:00:06]} 59. Nxg5 {[%clk 0:00:06]}  Kxg5 {[%clk 0:00:07]} 60. Rd6 {[%clk 0:00:07]}  f4+ {[%clk 0:00:06]} 61. Kh2 {[%clk 0:00:06]}  d3 {[%clk 0:00:07]} 62. h4+ {[%clk 0:00:05]}  Kh5 {[%clk 0:00:03]} 63. Kh3 {[%clk 0:00:05]}  Kh6 {[%clk 0:00:03]} 64. Rd4 {[%clk 0:00:04]}  Rd1 {[%clk 0:00:04]} 65. Kg4 {[%clk 0:00:03]}  Rg1 {[%clk 0:00:04]} 66. Kxf4 {[%clk 0:00:03]}  Rxg2 {[%clk 0:00:04]} 67. Rxd3 {[%clk 0:00:04]}  g5+ {[%clk 0:00:03]} 68. hxg5+ {[%clk 0:00:04]}  Rxg5 {[%clk 0:00:04]} 69. Rd8 {[%clk 0:00:04]}  Ra5 {[%clk 0:00:04]} 70. Kg4 {[%clk 0:00:03]}  Kg6 {[%clk 0:00:04]} 71. Rd6+ {[%clk 0:00:03]}  Kg7 {[%clk 0:00:05]} 72. f4 {[%clk 0:00:04]}  Rb5 {[%clk 0:00:05]} 73. Rc6 {[%clk 0:00:04]}  Ra5 {[%clk 0:00:06]} 74. Re6 {[%clk 0:00:04]}  Rb5 {[%clk 0:00:06]} 75. Re5 {[%clk 0:00:04]}  Rxe5 {[%clk 0:00:06]} 76. fxe5 {[%clk 0:00:05]}  Kf7 {[%clk 0:00:07]} 77. Kf5 {[%clk 0:00:06]}  Ke7 {[%clk 0:00:08]} 78. e6 {[%clk 0:00:07]}  Ke8 {[%clk 0:00:08]} 79. Kf6 {[%clk 0:00:07]}  Kf8 {[%clk 0:00:08]} 80. Ke5 {[%clk 0:00:06]}  Ke7 {[%clk 0:00:09]} 81. Kd5 {[%clk 0:00:07]}  Ke8 {[%clk 0:00:10]} 82. Ke5 {[%clk 0:00:06]}  Ke7 {[%clk 0:00:10]} 83. Kd5 {[%clk 0:00:07]}  Ke8 {[%clk 0:00:10]} 84. Kd6 {[%clk 0:00:08]}  Kd8 {[%clk 0:00:11]} 85. e7+ {[%clk 0:00:09]}  Ke8 {[%clk 0:00:10]} 86. Ke6 {[%clk 0:00:10]} 1/2-1/2


[Site "https://www.chess.com"]

[Event "Titled Tuesday Blitz May 23 Late 2023"]
[White "Martinez Alcantara, Jose Eduardo"]
[Black "Nihal Sarin"]
[WhiteFideId "3805662"]
[BlackFideId "25092340"]
[WhiteElo "2711"]
[BlackElo "2689"]
[Result "1/2-1/2"]
[Round "09"]
[TimeControl "180+2"]
[Date "2023.05.23"]
[WhiteClock "0:00:05"]
[BlackClock "0:00:06"]

1. e4 {[%clk 0:03:00]}  c6 {[%clk 0:02:57]} 2. d4 {[%clk 0:03:00]}  d5 {[%clk 0:02:54]} 3. e5 {[%clk 0:03:01]}  Bf5 {[%clk 0:02:48]} 4. h4 {[%clk 0:03:00]}  h5 {[%clk 0:02:45]} 5. Bd3 {[%clk 0:03:00]}  Bxd3 {[%clk 0:02:44]} 6. Qxd3 {[%clk 0:03:01]}  Qa5+ {[%clk 0:02:43]} 7. b4 {[%clk 0:03:00]}  Qa6 {[%clk 0:02:35]} 8. e6 {[%clk 0:02:59]}  Qxd3 {[%clk 0:02:30]} 9. cxd3 {[%clk 0:03:00]}  fxe6 {[%clk 0:02:26]} 10. Nd2 {[%clk 0:03:00]}  Nd7 {[%clk 0:02:25]} 11. Ndf3 {[%clk 0:03:00]}  Nh6 {[%clk 0:02:19]} 12. Nh3 {[%clk 0:02:57]}  Ng4 {[%clk 0:01:41]} 13. Bf4 {[%clk 0:02:27]}  g6 {[%clk 0:00:59]} 14. O-O {[%clk 0:02:23]}  Bg7 {[%clk 0:00:53]} 15. Rfe1 {[%clk 0:02:23]}  a5 {[%clk 0:00:40]} 16. bxa5 {[%clk 0:02:06]}  Rxa5 {[%clk 0:00:41]} 17. Rxe6 {[%clk 0:02:06]}  Bf6 {[%clk 0:00:41]} 18. Ree1 {[%clk 0:01:39]}  O-O {[%clk 0:00:36]} 19. Rab1 {[%clk 0:01:20]}  b6 {[%clk 0:00:29]} 20. Bg5 {[%clk 0:01:01]}  Rxa2 {[%clk 0:00:26]} 21. Bxf6 {[%clk 0:01:02]}  exf6 {[%clk 0:00:22]} 22. Re6 {[%clk 0:01:02]}  Rc2 {[%clk 0:00:17]} 23. Rd6 {[%clk 0:00:38]}  Rf7 {[%clk 0:00:17]} 24. Ne1 {[%clk 0:00:32]}  Ra2 {[%clk 0:00:12]} 25. Rxc6 {[%clk 0:00:31]}  Re7 {[%clk 0:00:12]} 26. Nf3 {[%clk 0:00:23]}  Kf7 {[%clk 0:00:10]} 27. Rd6 {[%clk 0:00:20]}  Nf8 {[%clk 0:00:06]} 28. Rdxb6 {[%clk 0:00:19]}  Ne6 {[%clk 0:00:07]} 29. R6b5 {[%clk 0:00:16]}  Rd7 {[%clk 0:00:06]} 30. R5b2 {[%clk 0:00:17]}  Rxb2 {[%clk 0:00:06]} 31. Rxb2 {[%clk 0:00:18]}  Ra7 {[%clk 0:00:07]} 32. Rb1 {[%clk 0:00:18]}  Ra3 {[%clk 0:00:07]} 33. Rd1 {[%clk 0:00:09]}  Ra4 {[%clk 0:00:08]} 34. Rb1 {[%clk 0:00:06]}  Nxd4 {[%clk 0:00:07]} 35. Nxd4 {[%clk 0:00:06]}  Rxd4 {[%clk 0:00:08]} 36. Rb7+ {[%clk 0:00:07]}  Ke6 {[%clk 0:00:08]} 37. g3 {[%clk 0:00:08]}  Ne5 {[%clk 0:00:06]} 38. Nf4+ {[%clk 0:00:08]}  Kf5 {[%clk 0:00:07]} 39. Rb5 {[%clk 0:00:04]}  g5 {[%clk 0:00:07]} 40. hxg5 {[%clk 0:00:02]}  fxg5 {[%clk 0:00:07]} 41. Nxd5 {[%clk 0:00:03]}  Rxd3 {[%clk 0:00:08]} 42. Ne3+ {[%clk 0:00:03]}  Ke4 {[%clk 0:00:08]} 43. Kg2 {[%clk 0:00:04]}  Rd4 {[%clk 0:00:05]} 44. Ra5 {[%clk 0:00:03]}  Rb4 {[%clk 0:00:04]} 45. Ra8 {[%clk 0:00:03]}  Rb2 {[%clk 0:00:03]} 46. Re8 {[%clk 0:00:04]}  Rb5 {[%clk 0:00:02]} 47. Nc4 {[%clk 0:00:04]}  Rc5 {[%clk 0:00:03]} 48. Nd2+ {[%clk 0:00:04]}  Kd3 {[%clk 0:00:03]} 49. Nf1 {[%clk 0:00:04]}  Ng4 {[%clk 0:00:02]} 50. Ne3 {[%clk 0:00:04]}  Nxe3+ {[%clk 0:00:01]} 51. Rxe3+ {[%clk 0:00:05]}  Kd4 {[%clk 0:00:02]} 52. Re8 {[%clk 0:00:05]}  Rf5 {[%clk 0:00:02]} 53. f3 {[%clk 0:00:05]}  Re5 {[%clk 0:00:02]} 54. Rh8 {[%clk 0:00:02]}  g4 {[%clk 0:00:02]} 55. fxg4 {[%clk 0:00:02]}  hxg4 {[%clk 0:00:03]} 56. Kf2 {[%clk 0:00:02]}  Rf5+ {[%clk 0:00:04]} 57. Ke2 {[%clk 0:00:03]}  Rf3 {[%clk 0:00:04]} 58. Rd8+ {[%clk 0:00:03]}  Ke4 {[%clk 0:00:04]} 59. Re8+ {[%clk 0:00:03]}  Kd4 {[%clk 0:00:05]} 60. Rd8+ {[%clk 0:00:04]}  Ke4 {[%clk 0:00:06]} 61. Re8+ {[%clk 0:00:05]}  Kd4 {[%clk 0:00:06]} 62. Rd8+ {[%clk 0:00:05]} 1/2-1/2


[Site "https://www.chess.com"]

[Event "Titled Tuesday Blitz May 23 Late 2023"]
[White "Caruana, Fabiano"]
[Black "Babazada, Khazar"]
[WhiteFideId "2020009"]
[BlackFideId "13413554"]
[WhiteElo "2837"]
[BlackElo "2351"]
[Result "1-0"]
[Round "09"]
[TimeControl "180+2"]
[Date "2023.05.23"]
[WhiteClock "0:00:03"]
[BlackClock "0:00:00"]

1. d4 {[%clk 0:03:00]}  Nf6 {[%clk 0:02:57]} 2. Nf3 {[%clk 0:03:01]}  e6 {[%clk 0:02:50]} 3. g3 {[%clk 0:03:01]}  d5 {[%clk 0:02:48]} 4. Bg2 {[%clk 0:03:01]}  Be7 {[%clk 0:02:47]} 5. O-O {[%clk 0:03:02]}  O-O {[%clk 0:02:47]} 6. c4 {[%clk 0:03:02]}  dxc4 {[%clk 0:02:47]} 7. Qc2 {[%clk 0:03:02]}  a6 {[%clk 0:02:46]} 8. a4 {[%clk 0:03:02]}  Bd7 {[%clk 0:02:45]} 9. Qxc4 {[%clk 0:03:02]}  Bc6 {[%clk 0:02:44]} 10. Bg5 {[%clk 0:03:03]}  Nbd7 {[%clk 0:02:40]} 11. Nbd2 {[%clk 0:02:59]}  a5 {[%clk 0:02:37]} 12. Rfd1 {[%clk 0:02:55]}  Nb6 {[%clk 0:02:02]} 13. Qc2 {[%clk 0:02:52]}  Nbd5 {[%clk 0:02:02]} 14. Nc4 {[%clk 0:02:37]}  Nb4 {[%clk 0:02:00]} 15. Qc1 {[%clk 0:02:36]}  Be4 {[%clk 0:01:59]} 16. Nfe5 {[%clk 0:02:21]}  Bxg2 {[%clk 0:01:49]} 17. Kxg2 {[%clk 0:02:22]}  h6 {[%clk 0:01:49]} 18. Bxf6 {[%clk 0:02:21]}  Bxf6 {[%clk 0:01:50]} 19. e4 {[%clk 0:02:18]}  c6 {[%clk 0:01:49]} 20. Qc3 {[%clk 0:02:07]}  Qc7 {[%clk 0:01:44]} 21. Ng4 {[%clk 0:02:04]}  Be7 {[%clk 0:01:45]} 22. Qb3 {[%clk 0:02:03]}  Rfd8 {[%clk 0:01:44]} 23. Rac1 {[%clk 0:02:03]}  b6 {[%clk 0:01:12]} 24. h4 {[%clk 0:02:00]}  Rac8 {[%clk 0:01:12]} 25. h5 {[%clk 0:01:57]}  Qb7 {[%clk 0:01:09]} 26. Qf3 {[%clk 0:01:54]}  Bf8 {[%clk 0:01:06]} 27. b3 {[%clk 0:01:51]}  b5 {[%clk 0:01:01]} 28. Nce5 {[%clk 0:01:44]}  bxa4 {[%clk 0:00:46]} 29. bxa4 {[%clk 0:01:45]}  Qa7 {[%clk 0:00:46]} 30. Rd2 {[%clk 0:01:37]}  Bd6 {[%clk 0:00:36]} 31. Nc4 {[%clk 0:01:34]}  Bf8 {[%clk 0:00:35]} 32. Rcd1 {[%clk 0:01:34]}  Qa6 {[%clk 0:00:31]} 33. Nce5 {[%clk 0:01:32]}  Qa7 {[%clk 0:00:32]} 34. Ne3 {[%clk 0:01:29]}  Bd6 {[%clk 0:00:32]} 35. N3c4 {[%clk 0:01:21]}  Bf8 {[%clk 0:00:28]} 36. Qe3 {[%clk 0:01:11]}  Qa6 {[%clk 0:00:26]} 37. Qe2 {[%clk 0:00:58]}  Be7 {[%clk 0:00:19]} 38. Qf3 {[%clk 0:00:54]}  Bf6 {[%clk 0:00:18]} 39. Rc1 {[%clk 0:00:53]}  Qa7 {[%clk 0:00:17]} 40. Rcd1 {[%clk 0:00:32]}  Rc7 {[%clk 0:00:17]} 41. Qe3 {[%clk 0:00:26]}  Bg5 {[%clk 0:00:18]} 42. f4 {[%clk 0:00:26]}  Be7 {[%clk 0:00:18]} 43. Qf3 {[%clk 0:00:25]}  Bf6 {[%clk 0:00:15]} 44. Ne3 {[%clk 0:00:24]}  c5 {[%clk 0:00:14]} 45. d5 {[%clk 0:00:23]}  Bxe5 {[%clk 0:00:13]} 46. fxe5 {[%clk 0:00:23]}  Rcd7 {[%clk 0:00:12]} 47. d6 {[%clk 0:00:23]}  Nc6 {[%clk 0:00:11]} 48. Ng4 {[%clk 0:00:22]}  c4 {[%clk 0:00:09]} 49. Rc1 {[%clk 0:00:20]}  Qc5 {[%clk 0:00:06]} 50. Qf2 {[%clk 0:00:20]}  Qb4 {[%clk 0:00:05]} 51. Rdc2 {[%clk 0:00:20]}  Qxa4 {[%clk 0:00:05]} 52. Rxc4 {[%clk 0:00:19]}  Nb4 {[%clk 0:00:06]} 53. Qf3 {[%clk 0:00:12]}  Qa2+ {[%clk 0:00:05]} 54. Kh3 {[%clk 0:00:13]}  Qd2 {[%clk 0:00:05]} 55. Qf4 {[%clk 0:00:11]}  Qe2 {[%clk 0:00:05]} 56. Qf2 {[%clk 0:00:09]}  Qd3 {[%clk 0:00:03]} 57. Qf1 {[%clk 0:00:07]}  Qb3 {[%clk 0:00:03]} 58. R4c3 {[%clk 0:00:07]}  Qa4 {[%clk 0:00:03]} 59. Qf4 {[%clk 0:00:07]}  Qb5 {[%clk 0:00:03]} 60. Rc5 {[%clk 0:00:06]}  Qd3 {[%clk 0:00:03]} 61. R5c3 {[%clk 0:00:06]}  Qe2 {[%clk 0:00:03]} 62. Qf3 {[%clk 0:00:07]}  Qb5 {[%clk 0:00:03]} 63. Rc7 {[%clk 0:00:07]}  Nd3 {[%clk 0:00:03]} 64. Rxd7 {[%clk 0:00:06]}  Rxd7 {[%clk 0:00:04]} 65. Rc8+ {[%clk 0:00:06]}  Kh7 {[%clk 0:00:04]} 66. Nf6+ {[%clk 0:00:06]}  gxf6 {[%clk 0:00:05]} 67. Qxf6 {[%clk 0:00:07]}  Nf4+ {[%clk 0:00:05]} 68. Qxf4 {[%clk 0:00:06]}  Qe2 {[%clk 0:00:05]} 69. g4 {[%clk 0:00:02]}  Qd3+ {[%clk 0:00:05]} 70. Kh4 {[%clk 0:00:01]}  Qe2 {[%clk 0:00:05]} 71. Kg3 {[%clk 0:00:02]}  Qe1+ {[%clk 0:00:06]} 72. Qf2 {[%clk 0:00:01]}  Qxe4 {[%clk 0:00:06]} 73. Qf4 {[%clk 0:00:02]}  Qe1+ {[%clk 0:00:06]} 74. Kg2 {[%clk 0:00:03]}  Rb7 {[%clk 0:00:06]} 75. Rc2 {[%clk 0:00:02]}  a4 {[%clk 0:00:06]} 76. Rf2 {[%clk 0:00:02]}  a3 {[%clk 0:00:06]} 77. Qf3 {[%clk 0:00:02]}  Ra7 {[%clk 0:00:05]} 78. Qd3+ {[%clk 0:00:03]}  Kg7 {[%clk 0:00:06]} 79. Qd4 {[%clk 0:00:03]}  Rd7 {[%clk 0:00:04]} 80. Qf4 {[%clk 0:00:03]}  a2 {[%clk 0:00:04]} 81. Rxa2 {[%clk 0:00:03]}  Rb7 {[%clk 0:00:03]} 82. Rf2 {[%clk 0:00:04]}  Kh7 {[%clk 0:00:03]} 83. Qf3 {[%clk 0:00:03]}  Kh8 {[%clk 0:00:00]} 84. Qxb7 {[%clk 0:00:03]} 1-0


[Site "https://www.chess.com"]